[Event "December 19 Early 2023"]
[Site "https://www.chess.com"]
[Date "2023.12.19"]
[Round "8"]
[White "Rose, Felix"]
[Black "Zhuk, Valeriy"]
[Result "0-1"]
[Board "151"]
[TimeControl "180+1"]
[WhiteFideId "5105722"]
[BlackFideId "24151254"]
[WhiteElo "2039"]
[BlackElo "2148"]
[WhiteTeam "MEX"]
[BlackTeam "RUS"]
[WhiteClock "0:00:08"]
[BlackClock "0:00:03"]

1. e4 {[%clk 0:03:00]}  c5 {[%clk 0:02:56]} 2. Nf3 {[%clk 0:02:59]}  e6 {[%clk 0:02:56]} 3. d4 {[%clk 0:02:59]}  cxd4 {[%clk 0:02:56]} 4. Nxd4 {[%clk 0:03:00]}  Nf6 {[%clk 0:02:57]} 5. Nc3 {[%clk 0:02:59]}  Nc6 {[%clk 0:02:57]} 6. Ndb5 {[%clk 0:03:00]}  Bb4 {[%clk 0:02:55]} 7. a3 {[%clk 0:03:00]}  Bxc3+ {[%clk 0:02:53]} 8. Nxc3 {[%clk 0:03:01]}  d5 {[%clk 0:02:53]} 9. exd5 {[%clk 0:03:02]}  exd5 {[%clk 0:02:54]} 10. Bd3 {[%clk 0:03:02]}  O-O {[%clk 0:02:49]} 11. O-O {[%clk 0:03:02]}  Bg4 {[%clk 0:02:50]} 12. f3 {[%clk 0:02:59]}  Qb6+ {[%clk 0:02:41]} 13. Kh1 {[%clk 0:02:58]}  Bh5 {[%clk 0:02:42]} 14. Bg5 {[%clk 0:02:53]}  Ne4 {[%clk 0:02:24]} 15. Nxe4 {[%clk 0:02:12]}  dxe4 {[%clk 0:02:23]} 16. Bxe4 {[%clk 0:02:12]}  Qxb2 {[%clk 0:02:24]} 17. Rb1 {[%clk 0:02:10]}  Qxa3 {[%clk 0:02:11]} 18. Rxb7 {[%clk 0:02:09]}  Rac8 {[%clk 0:02:00]} 19. Qd7 {[%clk 0:00:47]}  Qa6 {[%clk 0:01:27]} 20. Rfb1 {[%clk 0:00:34]}  Bg6 {[%clk 0:01:26]} 21. Bxc6 {[%clk 0:00:23]}  Qxc6 {[%clk 0:01:18]} 22. Qxc6 {[%clk 0:00:21]}  Rxc6 {[%clk 0:01:19]} 23. Rxa7 {[%clk 0:00:22]}  Rxc2 {[%clk 0:01:13]} 24. Rc1 {[%clk 0:00:22]}  h6 {[%clk 0:01:04]} 25. Rxc2 {[%clk 0:00:21]}  Bxc2 {[%clk 0:01:04]} 26. Be7 {[%clk 0:00:21]}  Rb8 {[%clk 0:01:01]} 27. h4 {[%clk 0:00:20]}  Rb1+ {[%clk 0:00:56]} 28. Kh2 {[%clk 0:00:21]}  Rb2 {[%clk 0:00:56]} 29. Ra8+ {[%clk 0:00:11]}  Kh7 {[%clk 0:00:54]} 30. Ra7 {[%clk 0:00:11]}  Bd3 {[%clk 0:00:52]} 31. Kg1 {[%clk 0:00:10]}  Rb1+ {[%clk 0:00:52]} 32. Kf2 {[%clk 0:00:10]}  Rb2+ {[%clk 0:00:52]} 33. Kg1 {[%clk 0:00:10]}  Kg6 {[%clk 0:00:50]} 34. Bc5 {[%clk 0:00:09]}  Bc4 {[%clk 0:00:43]} 35. Bd4 {[%clk 0:00:08]}  Rb1+ {[%clk 0:00:43]} 36. Kf2 {[%clk 0:00:08]}  Rd1 {[%clk 0:00:43]} 37. Be3 {[%clk 0:00:08]}  Rb1 {[%clk 0:00:42]} 38. Rc7 {[%clk 0:00:07]}  Rb2+ {[%clk 0:00:42]} 39. Kg3 {[%clk 0:00:08]}  Bf1 {[%clk 0:00:41]} 40. Rc1 {[%clk 0:00:08]}  Rxg2+ {[%clk 0:00:32]} 41. Kf4 {[%clk 0:00:08]}  Bd3 {[%clk 0:00:28]} 42. Rc6+ {[%clk 0:00:08]}  f6 {[%clk 0:00:28]} 43. Rc7 {[%clk 0:00:07]}  h5 {[%clk 0:00:14]} 44. Bd4 {[%clk 0:00:06]}  Kh6 {[%clk 0:00:14]} 45. Ke3 {[%clk 0:00:06]}  Bf5 {[%clk 0:00:13]} 46. Rc1 {[%clk 0:00:02]}  Rh2 {[%clk 0:00:12]} 47. Kf4 {[%clk 0:00:03]}  Rxh4+ {[%clk 0:00:12]} 48. Kxf5 {[%clk 0:00:03]}  Rxd4 {[%clk 0:00:12]} 49. Rg1 {[%clk 0:00:03]}  Rd5+ {[%clk 0:00:04]} 50. Kf4 {[%clk 0:00:03]}  g5+ {[%clk 0:00:04]} 51. Kg3 {[%clk 0:00:03]}  h4+ {[%clk 0:00:04]} 52. Kh3 {[%clk 0:00:03]}  f5 {[%clk 0:00:04]} 53. Re1 {[%clk 0:00:04]}  Rd3 {[%clk 0:00:05]} 54. Re7 {[%clk 0:00:04]}  Rxf3+ {[%clk 0:00:04]} 55. Kh2 {[%clk 0:00:05]}  g4 {[%clk 0:00:04]} 56. Re6+ {[%clk 0:00:05]}  Kg5 {[%clk 0:00:03]} 57. Re8 {[%clk 0:00:06]}  h3 {[%clk 0:00:04]} 58. Rg8+ {[%clk 0:00:06]}  Kf4 {[%clk 0:00:04]} 59. Kg1 {[%clk 0:00:06]}  Ra3 {[%clk 0:00:04]} 60. Rc8 {[%clk 0:00:06]}  Ra1+ {[%clk 0:00:04]} 61. Kh2 {[%clk 0:00:07]}  Ra2+ {[%clk 0:00:04]} 62. Kg1 {[%clk 0:00:07]}  g3 {[%clk 0:00:02]} 63. Rc4+ {[%clk 0:00:07]}  Kf3 {[%clk 0:00:02]} 64. Rc3+ {[%clk 0:00:08]}  Kg4 {[%clk 0:00:02]} 65. Rc1 {[%clk 0:00:08]}  h2+ {[%clk 0:00:02]} 66. Kh1 {[%clk 0:00:09]}  Kh3 {[%clk 0:00:02]} 67. Rg1 {[%clk 0:00:07]}  hxg1=Q+ {[%clk 0:00:02]} 68. Kxg1 {[%clk 0:00:08]}  Ra1# {[%clk 0:00:03]} 0-1

[Event "December 19 Early 2023"]
[Site "https://www.chess.com"]
[Date "2023.12.19"]
[Round "8"]
[White "Tarasova, Viktoriya"]
[Black "Cramling Bellon, Anna"]
[Result "1-0"]
[Board "152"]
[TimeControl "180+1"]
[WhiteFideId "4175840"]
[BlackFideId "32009232"]
[WhiteElo "2182"]
[BlackElo "1976"]
[WhiteTeam "RUS"]
[BlackTeam "SWE"]
[WhiteClock "0:01:53"]
[BlackClock "0:00:00"]

1. d4 {[%clk 0:02:56]}  Nf6 {[%clk 0:02:58]} 2. c4 {[%clk 0:02:56]}  e6 {[%clk 0:02:58]} 3. Nc3 {[%clk 0:02:55]}  d5 {[%clk 0:02:58]} 4. cxd5 {[%clk 0:02:55]}  exd5 {[%clk 0:02:57]} 5. Bg5 {[%clk 0:02:55]}  Be7 {[%clk 0:02:51]} 6. Qc2 {[%clk 0:02:55]}  c6 {[%clk 0:02:49]} 7. e3 {[%clk 0:02:55]}  Bg4 {[%clk 0:02:46]} 8. Bd3 {[%clk 0:02:55]}  Nbd7 {[%clk 0:02:46]} 9. f3 {[%clk 0:02:53]}  Bh5 {[%clk 0:02:45]} 10. Nge2 {[%clk 0:02:53]}  Bg6 {[%clk 0:02:46]} 11. e4 {[%clk 0:02:51]}  dxe4 {[%clk 0:02:38]} 12. fxe4 {[%clk 0:02:51]}  Ng4 {[%clk 0:02:37]} 13. Bf4 {[%clk 0:02:39]}  Bg5 {[%clk 0:02:04]} 14. Qd2 {[%clk 0:02:39]}  h6 {[%clk 0:01:34]} 15. O-O {[%clk 0:02:32]}  O-O {[%clk 0:01:11]} 16. h3 {[%clk 0:02:32]}  Nge5 {[%clk 0:00:24]} 17. dxe5 {[%clk 0:02:23]}  Nxe5 {[%clk 0:00:24]} 18. Bxg5 {[%clk 0:02:23]}  hxg5 {[%clk 0:00:24]} 19. Rad1 {[%clk 0:02:20]}  Qb6+ {[%clk 0:00:23]} 20. Kh1 {[%clk 0:02:19]}  Rad8 {[%clk 0:00:24]} 21. Qc2 {[%clk 0:02:19]}  g4 {[%clk 0:00:07]} 22. Nf4 {[%clk 0:02:15]}  gxh3 {[%clk 0:00:04]} 23. gxh3 {[%clk 0:02:15]}  Bh7 {[%clk 0:00:02]} 24. Qf2 {[%clk 0:01:59]}  Qc7 {[%clk 0:00:02]} 25. Rg1 {[%clk 0:01:59]}  g6 {[%clk 0:00:00]} 26. Bc2 {[%clk 0:01:53]} 1-0

[Event "December 19 Early 2023"]
[Site "https://www.chess.com"]
[Date "2023.12.19"]
[Round "8"]
[White "Petrova, Irina"]
[Black "UnTucopalaTimba"]
[Result "1-0"]
[Board "153"]
[TimeControl "180+1"]
[WhiteFideId "14124122"]
[WhiteElo "2085"]
[BlackElo "2066"]
[WhiteTeam "UKR"]
[WhiteClock "0:02:06"]
[BlackClock "0:01:15"]

1. e4 {[%clk 0:03:00]}  c6 {[%clk 0:02:59]} 2. d4 {[%clk 0:03:00]}  d5 {[%clk 0:02:59]} 3. Nc3 {[%clk 0:03:01]}  dxe4 {[%clk 0:02:58]} 4. Nxe4 {[%clk 0:03:02]}  Bf5 {[%clk 0:02:58]} 5. Ng3 {[%clk 0:03:02]}  Bg6 {[%clk 0:02:58]} 6. h4 {[%clk 0:03:02]}  h6 {[%clk 0:02:57]} 7. Nf3 {[%clk 0:03:02]}  Nd7 {[%clk 0:02:57]} 8. h5 {[%clk 0:03:02]}  Bh7 {[%clk 0:02:56]} 9. Bd3 {[%clk 0:03:03]}  Bxd3 {[%clk 0:02:57]} 10. Qxd3 {[%clk 0:03:04]}  e6 {[%clk 0:02:57]} 11. Bd2 {[%clk 0:03:04]}  Ngf6 {[%clk 0:02:57]} 12. O-O-O {[%clk 0:03:04]}  Be7 {[%clk 0:02:53]} 13. Kb1 {[%clk 0:03:04]}  O-O {[%clk 0:02:51]} 14. Rhe1 {[%clk 0:03:04]}  Rc8 {[%clk 0:02:47]} 15. Ne4 {[%clk 0:02:57]}  c5 {[%clk 0:02:40]} 16. dxc5 {[%clk 0:02:49]}  Nxc5 {[%clk 0:02:36]} 17. Nxc5 {[%clk 0:02:49]}  Rxc5 {[%clk 0:02:32]} 18. Qe2 {[%clk 0:02:46]}  Qc7 {[%clk 0:02:25]} 19. Be3 {[%clk 0:02:40]}  Rxh5 {[%clk 0:02:17]} 20. Nd4 {[%clk 0:02:35]}  a6 {[%clk 0:02:05]} 21. g4 {[%clk 0:02:33]}  Rd5 {[%clk 0:02:03]} 22. c4 {[%clk 0:02:31]}  Rdd8 {[%clk 0:01:56]} 23. g5 {[%clk 0:02:30]}  hxg5 {[%clk 0:01:52]} 24. Bxg5 {[%clk 0:02:31]}  Qc5 {[%clk 0:01:42]} 25. Be3 {[%clk 0:02:28]}  Qa5 {[%clk 0:01:39]} 26. Rh1 {[%clk 0:02:25]}  Bc5 {[%clk 0:01:32]} 27. Nb3 {[%clk 0:02:15]}  Rxd1+ {[%clk 0:01:31]} 28. Qxd1 {[%clk 0:02:10]}  Qb4 {[%clk 0:01:19]} 29. Bxc5 {[%clk 0:02:08]}  Qxc4 {[%clk 0:01:19]} 30. Bxf8 {[%clk 0:02:07]}  Kxf8 {[%clk 0:01:19]} 31. Qd8+ {[%clk 0:02:06]}  Ne8 {[%clk 0:01:15]} 32. Rh8# {[%clk 0:02:06]} 1-0

[Event "December 19 Early 2023"]
[Site "https://www.chess.com"]
[Date "2023.12.19"]
[Round "8"]
[White "Dwilewicz, Katarzyna"]
[Black "Kowalysko, Roman"]
[Result "1-0"]
[Board "155"]
[TimeControl "180+1"]
[WhiteFideId "1148486"]
[BlackFideId "30918510"]
[WhiteElo "2098"]
[BlackElo "2271"]
[WhiteTeam "POL"]
[BlackTeam "USA"]
[WhiteClock "0:01:00"]
[BlackClock "0:00:00"]

1. e4 {[%clk 0:02:58]}  c5 {[%clk 0:02:59]} 2. c3 {[%clk 0:02:56]}  Nf6 {[%clk 0:03:00]} 3. e5 {[%clk 0:02:57]}  Nd5 {[%clk 0:03:00]} 4. d4 {[%clk 0:02:57]}  cxd4 {[%clk 0:03:01]} 5. Bc4 {[%clk 0:02:57]}  Nb6 {[%clk 0:02:59]} 6. Bb3 {[%clk 0:02:57]}  d3 {[%clk 0:02:59]} 7. Qxd3 {[%clk 0:02:56]}  Nc6 {[%clk 0:02:53]} 8. Nf3 {[%clk 0:02:56]}  g6 {[%clk 0:02:53]} 9. Bf4 {[%clk 0:02:34]}  Bg7 {[%clk 0:02:48]} 10. h4 {[%clk 0:02:31]}  e6 {[%clk 0:02:43]} 11. Nbd2 {[%clk 0:02:27]}  h5 {[%clk 0:02:19]} 12. O-O-O {[%clk 0:02:25]}  a5 {[%clk 0:02:17]} 13. a4 {[%clk 0:02:21]}  Rb8 {[%clk 0:02:02]} 14. Ne4 {[%clk 0:02:18]}  O-O {[%clk 0:01:57]} 15. Rhe1 {[%clk 0:01:58]}  Na8 {[%clk 0:01:57]} 16. Bg5 {[%clk 0:01:47]}  Qb6 {[%clk 0:01:50]} 17. Ned2 {[%clk 0:01:46]}  Nc7 {[%clk 0:01:49]} 18. Re2 {[%clk 0:01:41]}  Qa6 {[%clk 0:01:47]} 19. Bc4 {[%clk 0:01:38]}  b5 {[%clk 0:01:43]} 20. axb5 {[%clk 0:01:37]}  Nxb5 {[%clk 0:01:43]} 21. Kc2 {[%clk 0:01:21]}  a4 {[%clk 0:01:34]} 22. Ra1 {[%clk 0:01:21]}  Nca7 {[%clk 0:01:03]} 23. Re4 {[%clk 0:01:16]}  Qb7 {[%clk 0:00:54]} 24. Bxb5 {[%clk 0:01:13]}  Nxb5 {[%clk 0:00:50]} 25. Rexa4 {[%clk 0:01:13]}  Nd4+ {[%clk 0:00:27]} 26. Nxd4 {[%clk 0:01:06]}  Qxb2+ {[%clk 0:00:27]} 27. Kd1 {[%clk 0:01:07]}  Bxe5 {[%clk 0:00:24]} 28. Rb1 {[%clk 0:01:02]}  Qa3 {[%clk 0:00:00]} 29. Rxa3 {[%clk 0:01:00]} 1-0

[Event "December 19 Early 2023"]
[Site "https://www.chess.com"]
[Date "2023.12.19"]
[Round "8"]
[White "Ovezdurdyyeva, Jemal"]
[Black "Player, Edmund C"]
[Result "1-0"]
[Board "156"]
[TimeControl "180+1"]
[WhiteFideId "14001888"]
[BlackFideId "406520"]
[WhiteElo "2086"]
[BlackElo "2015"]
[WhiteTeam "TKM"]
[BlackTeam "ENG"]
[WhiteClock "0:00:25"]
[BlackClock "0:00:07"]

1. e4 {[%clk 0:03:00]}  c6 {[%clk 0:02:52]} 2. d4 {[%clk 0:02:59]}  d5 {[%clk 0:02:52]} 3. Nd2 {[%clk 0:03:00]}  dxe4 {[%clk 0:02:52]} 4. Nxe4 {[%clk 0:03:00]}  Bf5 {[%clk 0:02:51]} 5. Ng3 {[%clk 0:02:59]}  Bg6 {[%clk 0:02:52]} 6. Nf3 {[%clk 0:02:59]}  Nd7 {[%clk 0:02:51]} 7. Bd3 {[%clk 0:02:59]}  Bxd3 {[%clk 0:02:48]} 8. Qxd3 {[%clk 0:02:59]}  Ngf6 {[%clk 0:02:44]} 9. O-O {[%clk 0:02:59]}  e6 {[%clk 0:02:44]} 10. c4 {[%clk 0:02:58]}  Be7 {[%clk 0:02:38]} 11. Rd1 {[%clk 0:02:52]}  Qb6 {[%clk 0:02:16]} 12. Be3 {[%clk 0:02:44]}  Rd8 {[%clk 0:01:20]} 13. d5 {[%clk 0:02:26]}  Nc5 {[%clk 0:01:11]} 14. Qc3 {[%clk 0:01:59]}  Qc7 {[%clk 0:00:29]} 15. Bxc5 {[%clk 0:01:42]}  Bxc5 {[%clk 0:00:27]} 16. dxe6 {[%clk 0:01:43]}  fxe6 {[%clk 0:00:21]} 17. Ng5 {[%clk 0:01:43]}  Rxd1+ {[%clk 0:00:14]} 18. Rxd1 {[%clk 0:01:42]}  Qe7 {[%clk 0:00:06]} 19. Re1 {[%clk 0:01:36]}  Bxf2+ {[%clk 0:00:06]} 20. Kxf2 {[%clk 0:01:32]}  Qc5+ {[%clk 0:00:07]} 21. Kf1 {[%clk 0:01:22]}  Qxg5 {[%clk 0:00:07]} 22. Rxe6+ {[%clk 0:01:23]}  Kf7 {[%clk 0:00:07]} 23. Qe1 {[%clk 0:01:13]}  Rd8 {[%clk 0:00:06]} 24. Re3 {[%clk 0:00:54]}  Ng4 {[%clk 0:00:05]} 25. Rf3+ {[%clk 0:00:54]}  Kg8 {[%clk 0:00:05]} 26. Kg1 {[%clk 0:00:52]}  Qc5+ {[%clk 0:00:04]} 27. Kh1 {[%clk 0:00:49]}  Rf8 {[%clk 0:00:03]} 28. Rxf8+ {[%clk 0:00:47]}  Kxf8 {[%clk 0:00:03]} 29. h3 {[%clk 0:00:46]}  Nf2+ {[%clk 0:00:03]} 30. Kh2 {[%clk 0:00:47]}  Nd3 {[%clk 0:00:02]} 31. Qf1+ {[%clk 0:00:46]}  Ke7 {[%clk 0:00:01]} 32. Qxd3 {[%clk 0:00:46]}  Qe5 {[%clk 0:00:01]} 33. Qe4 {[%clk 0:00:46]}  Kd6 {[%clk 0:00:02]} 34. Qxe5+ {[%clk 0:00:46]}  Kxe5 {[%clk 0:00:03]} 35. Nh5 {[%clk 0:00:47]}  Kd4 {[%clk 0:00:04]} 36. Nxg7 {[%clk 0:00:47]}  Kxc4 {[%clk 0:00:05]} 37. Ne6 {[%clk 0:00:46]}  Kd3 {[%clk 0:00:06]} 38. Nd8 {[%clk 0:00:47]}  Kc2 {[%clk 0:00:07]} 39. Nxb7 {[%clk 0:00:47]}  Kxb2 {[%clk 0:00:07]} 40. a4 {[%clk 0:00:43]}  Kb3 {[%clk 0:00:07]} 41. a5 {[%clk 0:00:44]}  Kb4 {[%clk 0:00:06]} 42. Kg3 {[%clk 0:00:36]}  c5 {[%clk 0:00:07]} 43. Kf2 {[%clk 0:00:35]}  c4 {[%clk 0:00:07]} 44. Ke2 {[%clk 0:00:35]}  Kb3 {[%clk 0:00:07]} 45. Kd1 {[%clk 0:00:32]}  Kb2 {[%clk 0:00:07]} 46. Nc5 {[%clk 0:00:29]}  c3 {[%clk 0:00:08]} 47. Nd3+ {[%clk 0:00:25]}  Kb3 {[%clk 0:00:08]} 48. Kc1 {[%clk 0:00:22]}  Kc4 {[%clk 0:00:08]} 49. Nf4 {[%clk 0:00:20]}  Kb5 {[%clk 0:00:07]} 50. Kc2 {[%clk 0:00:21]}  Kxa5 {[%clk 0:00:06]} 51. Kxc3 {[%clk 0:00:21]}  Kb5 {[%clk 0:00:07]} 52. Ne6 {[%clk 0:00:22]}  Kc6 {[%clk 0:00:07]} 53. Nf8 {[%clk 0:00:23]}  h6 {[%clk 0:00:08]} 54. Ng6 {[%clk 0:00:23]}  Kd5 {[%clk 0:00:08]} 55. Ne7+ {[%clk 0:00:22]}  Ke4 {[%clk 0:00:08]} 56. Ng8 {[%clk 0:00:22]}  h5 {[%clk 0:00:08]} 57. Nf6+ {[%clk 0:00:22]}  Kf4 {[%clk 0:00:08]} 58. Nxh5+ {[%clk 0:00:23]}  Kg5 {[%clk 0:00:08]} 59. Ng3 {[%clk 0:00:23]}  Kh4 {[%clk 0:00:09]} 60. Nf1 {[%clk 0:00:24]}  a5 {[%clk 0:00:09]} 61. Kb3 {[%clk 0:00:24]}  a4+ {[%clk 0:00:07]} 62. Kxa4 {[%clk 0:00:25]} 1-0

[Event "December 19 Early 2023"]
[Site "https://www.chess.com"]
[Date "2023.12.19"]
[Round "8"]
[White "Franchini, Gabriele"]
[Black "Leve, Nitai"]
[Result "0-1"]
[Board "158"]
[TimeControl "180+1"]
[WhiteFideId "806790"]
[BlackFideId "2006898"]
[WhiteElo "2215"]
[BlackElo "2144"]
[WhiteTeam "ITA"]
[BlackTeam "USA"]
[WhiteClock "0:00:35"]
[BlackClock "0:00:26"]

1. e4 {[%clk 0:03:00]}  c6 {[%clk 0:02:28]} 2. d4 {[%clk 0:03:00]}  d5 {[%clk 0:02:24]} 3. exd5 {[%clk 0:03:01]}  cxd5 {[%clk 0:02:17]} 4. Bd3 {[%clk 0:03:01]}  Nc6 {[%clk 0:02:11]} 5. c3 {[%clk 0:03:02]}  Nf6 {[%clk 0:02:07]} 6. Bf4 {[%clk 0:03:02]}  Bg4 {[%clk 0:02:04]} 7. Qb3 {[%clk 0:03:00]}  Qb6 {[%clk 0:01:38]} 8. h3 {[%clk 0:02:56]}  Bh5 {[%clk 0:01:36]} 9. Qxb6 {[%clk 0:02:53]}  axb6 {[%clk 0:01:36]} 10. Na3 {[%clk 0:02:54]}  e6 {[%clk 0:01:36]} 11. Nb5 {[%clk 0:02:51]}  Kd7 {[%clk 0:01:34]} 12. Ne2 {[%clk 0:02:29]}  Be7 {[%clk 0:01:29]} 13. O-O {[%clk 0:02:28]}  Ra5 {[%clk 0:01:27]} 14. a4 {[%clk 0:02:16]}  Rha8 {[%clk 0:01:25]} 15. b3 {[%clk 0:02:12]}  Ne4 {[%clk 0:01:23]} 16. Bxe4 {[%clk 0:02:09]}  Bxe2 {[%clk 0:01:00]} 17. Nc7 {[%clk 0:01:54]}  Bxf1 {[%clk 0:00:56]} 18. Bc2 {[%clk 0:01:27]}  Rc8 {[%clk 0:00:47]} 19. Kxf1 {[%clk 0:01:21]}  Rxc7 {[%clk 0:00:46]} 20. Bxc7 {[%clk 0:01:17]}  Kxc7 {[%clk 0:00:47]} 21. Bxh7 {[%clk 0:01:14]}  g6 {[%clk 0:00:47]} 22. Bg8 {[%clk 0:01:13]}  Nd8 {[%clk 0:00:47]} 23. g3 {[%clk 0:01:06]}  Kd7 {[%clk 0:00:38]} 24. Re1 {[%clk 0:01:05]}  Ke8 {[%clk 0:00:38]} 25. c4 {[%clk 0:00:38]}  dxc4 {[%clk 0:00:32]} 26. bxc4 {[%clk 0:00:37]}  Kf8 {[%clk 0:00:31]} 27. Bh7 {[%clk 0:00:37]}  Kg7 {[%clk 0:00:31]} 28. d5 {[%clk 0:00:35]}  Kxh7 {[%clk 0:00:26]} 0-1

[Event "December 19 Early 2023"]
[Site "https://www.chess.com"]
[Date "2023.12.19"]
[Round "8"]
[White "Chemin, Justo Reinaldo"]
[Black "Buscar, Michael"]
[Result "0-1"]
[Board "162"]
[TimeControl "180+1"]
[WhiteFideId "2101580"]
[BlackFideId "2603616"]
[WhiteElo "1940"]
[BlackElo "2010"]
[WhiteTeam "BRA"]
[BlackTeam "CAN"]
[WhiteClock "0:00:00"]
[BlackClock "0:00:14"]

1. e4 {[%clk 0:02:37]}  c5 {[%clk 0:01:19]} 2. Nf3 {[%clk 0:02:35]}  Nc6 {[%clk 0:01:18]} 3. Nc3 {[%clk 0:02:33]}  Nf6 {[%clk 0:01:18]} 4. d3 {[%clk 0:02:33]}  g6 {[%clk 0:01:18]} 5. g3 {[%clk 0:02:33]}  Bg7 {[%clk 0:01:18]} 6. Bg2 {[%clk 0:02:34]}  O-O {[%clk 0:01:19]} 7. O-O {[%clk 0:02:34]}  d6 {[%clk 0:01:19]} 8. h4 {[%clk 0:02:34]}  Nd4 {[%clk 0:01:17]} 9. Nxd4 {[%clk 0:02:33]}  cxd4 {[%clk 0:01:17]} 10. Ne2 {[%clk 0:02:33]}  Ne8 {[%clk 0:01:17]} 11. f4 {[%clk 0:02:31]}  Bg4 {[%clk 0:01:16]} 12. Bd2 {[%clk 0:02:20]}  e5 {[%clk 0:01:12]} 13. f5 {[%clk 0:02:02]}  Rc8 {[%clk 0:00:58]} 14. Bf3 {[%clk 0:02:02]}  gxf5 {[%clk 0:00:37]} 15. exf5 {[%clk 0:01:54]}  Bxf5 {[%clk 0:00:33]} 16. Bxb7 {[%clk 0:01:50]}  Bh3 {[%clk 0:00:32]} 17. Bg2 {[%clk 0:01:19]}  Bxg2 {[%clk 0:00:27]} 18. Kxg2 {[%clk 0:01:19]}  f5 {[%clk 0:00:26]} 19. Ng1 {[%clk 0:01:11]}  Qb6 {[%clk 0:00:24]} 20. Rb1 {[%clk 0:01:03]}  Qc6+ {[%clk 0:00:25]} 21. Qf3 {[%clk 0:00:40]}  Qxf3+ {[%clk 0:00:23]} 22. Nxf3 {[%clk 0:00:33]}  Rxc2 {[%clk 0:00:24]} 23. Rfc1 {[%clk 0:00:31]}  Rxc1 {[%clk 0:00:18]} 24. Rxc1 {[%clk 0:00:31]}  Rf7 {[%clk 0:00:18]} 25. Rc8 {[%clk 0:00:30]}  Kf8 {[%clk 0:00:18]} 26. Ng5 {[%clk 0:00:29]}  Re7 {[%clk 0:00:15]} 27. Nxh7+ {[%clk 0:00:28]}  Kg8 {[%clk 0:00:16]} 28. Ng5 {[%clk 0:00:28]}  Bf6 {[%clk 0:00:15]} 29. Bb4 {[%clk 0:00:00]}  Kg7 {[%clk 0:00:14]} 0-1

[Event "December 19 Early 2023"]
[Site "https://www.chess.com"]
[Date "2023.12.19"]
[Round "8"]
[White "Ruge, Edison"]
[Black "Essing, Arnold"]
[Result "1-0"]
[Board "164"]
[TimeControl "180+1"]
[WhiteFideId "4401000"]
[BlackFideId "4619862"]
[WhiteElo "2175"]
[BlackElo "2257"]
[WhiteTeam "COL"]
[BlackTeam "GER"]
[WhiteClock "0:00:16"]
[BlackClock "0:00:13"]

1. e4 {[%clk 0:02:55]}  Nf6 {[%clk 0:03:00]} 2. e5 {[%clk 0:02:54]}  Nd5 {[%clk 0:03:00]} 3. c4 {[%clk 0:02:55]}  Nb6 {[%clk 0:03:00]} 4. c5 {[%clk 0:02:54]}  Nd5 {[%clk 0:03:00]} 5. Bc4 {[%clk 0:02:55]}  e6 {[%clk 0:03:00]} 6. Nc3 {[%clk 0:02:55]}  c6 {[%clk 0:03:00]} 7. d4 {[%clk 0:02:55]}  b6 {[%clk 0:03:00]} 8. cxb6 {[%clk 0:02:54]}  axb6 {[%clk 0:03:00]} 9. Qg4 {[%clk 0:02:54]}  f5 {[%clk 0:02:44]} 10. Qg3 {[%clk 0:02:51]}  Ba6 {[%clk 0:02:39]} 11. Bxa6 {[%clk 0:02:46]}  Nxa6 {[%clk 0:02:40]} 12. Nge2 {[%clk 0:02:45]}  Qe7 {[%clk 0:02:37]} 13. O-O {[%clk 0:02:44]}  Qf7 {[%clk 0:02:37]} 14. a3 {[%clk 0:02:39]}  Be7 {[%clk 0:02:34]} 15. Nxd5 {[%clk 0:02:39]}  cxd5 {[%clk 0:02:31]} 16. Bd2 {[%clk 0:02:36]}  O-O {[%clk 0:02:25]} 17. Rac1 {[%clk 0:02:36]}  Rfc8 {[%clk 0:02:22]} 18. Qb3 {[%clk 0:02:36]}  Bd8 {[%clk 0:02:15]} 19. Qb5 {[%clk 0:02:33]}  Nc7 {[%clk 0:01:55]} 20. Qb3 {[%clk 0:02:19]}  Ne8 {[%clk 0:01:49]} 21. Bb4 {[%clk 0:02:14]}  f4 {[%clk 0:01:40]} 22. Qf3 {[%clk 0:02:09]}  g5 {[%clk 0:01:39]} 23. h3 {[%clk 0:02:06]}  Qf5 {[%clk 0:01:35]} 24. Rc3 {[%clk 0:01:58]}  Rxc3 {[%clk 0:01:32]} 25. Qxc3 {[%clk 0:01:55]}  h5 {[%clk 0:01:22]} 26. Rc1 {[%clk 0:01:53]}  g4 {[%clk 0:01:17]} 27. hxg4 {[%clk 0:01:51]}  hxg4 {[%clk 0:01:18]} 28. Qc2 {[%clk 0:01:50]}  Qg5 {[%clk 0:01:09]} 29. Bd2 {[%clk 0:01:49]}  Ng7 {[%clk 0:00:54]} 30. Bxf4 {[%clk 0:01:47]}  Qh4 {[%clk 0:00:48]} 31. Ng3 {[%clk 0:01:34]}  Bg5 {[%clk 0:00:41]} 32. Bxg5 {[%clk 0:01:29]}  Qxg5 {[%clk 0:00:42]} 33. Rd1 {[%clk 0:01:21]}  Rf8 {[%clk 0:00:42]} 34. Qd2 {[%clk 0:01:10]}  Qh4 {[%clk 0:00:32]} 35. Rc1 {[%clk 0:01:04]}  Nf5 {[%clk 0:00:31]} 36. Nxf5 {[%clk 0:00:59]}  Rxf5 {[%clk 0:00:32]} 37. Rc8+ {[%clk 0:00:57]}  Kg7 {[%clk 0:00:31]} 38. Rc7 {[%clk 0:00:42]}  g3 {[%clk 0:00:22]} 39. Rxd7+ {[%clk 0:00:40]}  Kg6 {[%clk 0:00:23]} 40. fxg3 {[%clk 0:00:35]}  Qxg3 {[%clk 0:00:22]} 41. Rd6 {[%clk 0:00:26]}  Rh5 {[%clk 0:00:20]} 42. Rxe6+ {[%clk 0:00:23]}  Kf7 {[%clk 0:00:19]} 43. Rf6+ {[%clk 0:00:19]}  Kg7 {[%clk 0:00:20]} 44. Rf3 {[%clk 0:00:18]}  Qh2+ {[%clk 0:00:18]} 45. Kf2 {[%clk 0:00:18]}  Rh6 {[%clk 0:00:17]} 46. Rg3+ {[%clk 0:00:17]}  Rg6 {[%clk 0:00:16]} 47. Rxg6+ {[%clk 0:00:16]}  Kxg6 {[%clk 0:00:17]} 48. Qd3+ {[%clk 0:00:16]}  Kg7 {[%clk 0:00:13]} 49. Qg3+ {[%clk 0:00:16]} 1-0